fUSD/lending_fUSD_20240524
["ID","MTS","AMOUNT","RATE_DAILY","PERIOD"]
[327826433,1716517838095,-150.0,0.000355,7]
[327826434,1716517838104,-324261.03962248,0.000355,5]
[327826435,1716517838129,-406.13838012,0.000355,5]
[327826436,1716517838140,-500.0,0.000355,5]
[327826437,1716517838163,-1476.94465062,0.000355,5]
[327826438,1716517838174,-1408.09049452,0.000355,5]
[327826439,1716517838185,-1933.2137905,0.000355,5]
[327826440,1716517838197,-711.99167326,0.000355,5]
[327826441,1716517838457,-7889.64218099,0.000355,15]
[327826443,1716517838467,-8082.95781921,0.000355,5]
[327826446,1716517838479,-3700.62304756,0.000355,5]
[327826455,1716517839546,-1728.72368233,0.000355,5]
[327826456,1716517839563,-657.76259654,0.000355,5]
[327826457,1716517839576,-1464.43317001,0.000355,5]
[327826458,1716517839588,-6146.64666196,0.000355,5]
[327826459,1716517839602,-443.83778674,0.000355,5]
[327826460,1716517839614,-1005.72000564,0.000355,5]
[327826461,1716517839629,-662.75865245,0.000355,5]
[327826462,1716517839645,-1113.46114593,0.000355,5]
[327826463,1716517839658,-552.82905431,0.000355,5]
[327826464,1716517839670,-410964.52042197,0.000355,5]
[327826465,1716517839682,-535.86622363,0.000355,5]
[327826466,1716517839694,-1154.89997,0.000355,5]
[327826467,1716517841144,-26387.52565017,0.000355,5]
[327826468,1716517841986,-270.0,0.000355,5]
[327826469,1716517841995,-4915.35078412,0.000355,5]
[327826483,1716517843615,-7549.23484708,0.000355,5]
[327826488,1716517843884,-524.40600679,0.00035499,2]
[327826489,1716517843893,-9484.19238514,0.000355,5]
[327826490,1716517843905,-6350.01563277,0.000355,5]
[327826491,1716517843917,-3751.45841529,0.000355,5]
[327826492,1716517843928,-3065.82392015,0.000355,5]
[327826493,1716517843939,-692.72723596,0.000355,5]
[327826494,1716517844093,-68417.60639703,0.000355,5]
[327826497,1716517844290,-55231.70997302,0.000355,5]
[327826499,1716517844302,-1619.13809975,0.000355,5]
[327826501,1716517844315,-18189.49660214,0.000355,5]
[327826510,1716517846766,-5000.0,0.00035499,7]
[327826512,1716517846776,-5322.30494509,0.00035499,4]
[327826514,1716517846787,-748.06667951,0.000355,5]
[327826516,1716517846800,-409.89673696,0.000355,5]
[327826554,1716518892778,1708.0,0.00031,120]
[327826566,1716519031662,-158.98,0.0001299,2]
[327826567,1716519031674,-158.98,0.0001299,2]
[327826568,1716519031683,-158.98,0.0001299,2]
[327826569,1716519031692,-158.98,0.0001299,2]
[327826571,1716519031701,-158.98,0.0001299,2]
[327826573,1716519031711,-158.98,0.0001299,2]
[327826575,1716519031720,-2.45828,0.0001299,2]
[327826578,1716519031732,-156.52172,0.0001299,2]
[327826580,1716519031741,-158.98,0.0001299,2]
[327826582,1716519031750,-158.98,0.0001299,2]
[327826584,1716519031759,-158.98,0.0001299,2]
[327826586,1716519031769,-158.98,0.0001299,2]
[327826588,1716519031780,-126.87828046,0.0001299,2]
[327826590,1716519031792,-32.10171954,0.0001299,2]
[327826591,1716519031802,-158.98,0.0001299,2]
[327826592,1716519031811,-158.98,0.0001299,2]
[327826593,1716519031819,-158.98,0.0001299,2]
[327826594,1716519031830,-121.80828046,0.0001299,2]
[327826595,1716519031842,-37.17171954,0.0001299,2]
[327826596,1716519031851,-275.90073468,0.00012998,2]
[327826597,1716519031861,-4801.75259839,0.00012999,2]
[327826598,1716519031919,-9867.84042517,0.00012999,2]
[327826599,1716519031932,-2227.67497592,0.00012999,2]
[327826600,1716519031948,-98557.64167853,0.00012999,2]
[327826601,1716519031957,-389719.80925537,0.00013,2]
[327826602,1716519031968,-28668.70522571,0.00013,2]
[327826603,1716519031979,-1592.4647743,0.00013,2]
[327826604,1716519031991,-647.77,0.00013,2]
[327826605,1716519032003,-522.67520343,0.00013,2]
[327826606,1716519032014,-772.25327017,0.00013,2]
[327826607,1716519032028,-1998.19639004,0.00013,2]
[327826608,1716519032040,-404.0000001,0.00013,2]
[327826609,1716519032051,-326.34,0.00013,2]
[327826610,1716519032062,-420.0,0.00013,2]
[327826611,1716519032200,-11450.30804488,0.00013,2]
[327826707,1716519037666,-372.33325024,0.00013,2]
[327826708,1716519037677,-600.0,0.00013,2]
[327826719,1716519038713,-1755.6958,0.00013,2]
[327826720,1716519038725,-7332.56230694,0.00013,2]
[327826721,1716519038738,-4081.53266487,0.00013,2]
[327826722,1716519038749,-3085715.38684015,0.00013,2]
[327826723,1716519038760,-3210.79791008,0.00013,2]
[327826724,1716519038771,-6165.42284167,0.00013,2]
[327826727,1716519040670,-13956.34048939,0.00013,2]
[327826728,1716519040682,-1621.03986384,0.00013,2]
[327826729,1716519040693,-312.16935958,0.00013,2]
[327826730,1716519040705,-2471.49953949,0.00013,2]
[327826731,1716519040716,-2377.98218144,0.00013,2]
[327826732,1716519041580,-20000.0,0.00013,2]
[327826735,1716519041592,-1576.9379362,0.00013,2]
[327826737,1716519041604,-822.22346696,0.00013,2]
[327826771,1716519043017,-935.99469805,0.00013,2]
[327826772,1716519043032,-1502.14020389,0.00013,2]
[327826773,1716519043044,-1955.28833964,0.00013,2]
[327826774,1716519043056,-596.8060094,0.00013,2]
[327826775,1716519043067,-1049.700003,0.00013,2]
[327826776,1716519043077,-450.180002,0.00013,2]
[327826777,1716519043088,-342.3,0.00013,2]
[327826778,1716519043099,-329.70014336,0.00013,2]
[327826779,1716519043313,-1017.6830018,0.00013,2]
[327826780,1716519043577,-1186.64880089,0.00013,2]
[327826781,1716519043589,-334914.8134686,0.00013,2]
[327826782,1716519043600,-338.28828015,0.00013,2]
[327826783,1716519043612,-453.999994,0.00013,2]
[327826784,1716519043624,-6052.53318049,0.00013,2]
[327826785,1716519043635,-5000.0,0.00013,2]
[327826786,1716519043646,-949.46686633,0.00013,2]
[327826787,1716519043657,-880.36175698,0.00013,2]
[327826788,1716519043670,-229278.16724893,0.00013,2]
[327826789,1716519043710,-859.49735212,0.00013,2]
[327826792,1716519043722,-433.41242587,0.00013,2]
[327826801,1716519046079,-470650.724411,0.00013,2]
[327826802,1716519046091,-569.64,0.00013,2]
[327826803,1716519046103,-10797.70756412,0.00013,2]
[327826804,1716519046114,-1362.98079444,0.00013,2]
[327826805,1716519046126,-5102.48764898,0.00013,2]
[327826806,1716519046138,-3282.25773088,0.00013,2]
[327826807,1716519046149,-415.0,0.00013,2]
[327826808,1716519046160,-308.25,0.00013,2]
[327826809,1716519046172,-254.86173603,0.00013,2]
[327826810,1716519046183,-431.60659171,0.00013,2]
[327826811,1716519046311,-13555.91151131,0.00013,2]
[327826812,1716519046323,-714.2364726,0.00013,2]
[327826813,1716519046334,-383.18352766,0.00013,2]
[327826814,1716519203402,-536.09705229,0.00012999,2]
[327826815,1716519203424,-3751.00000083,0.00012999,2]
[327826816,1716519203449,-10712.90294688,0.00013,2]
[327826819,1716519460349,-200.0,0.000124,4]
[327826820,1716519460372,-500.0,0.000125,4]
[327826821,1716519460394,-800.0,0.000126,4]
[327826822,1716519460415,-1000.0,0.000127,4]
[327826823,1716519460437,-1300.0,0.000128,4]
[327826824,1716519474747,-200.0,0.000129,4]
[327826837,1716520176917,150.5148985,0.00031,120]
[327826839,1716520207016,-450.41618524,0.000129,2]
[327826840,1716520207042,-19549.58381476,0.00013,2]
[327826844,1716520226488,160.0,0.00026671,120]
[327826845,1716520226802,160.0,0.00030481,120]
[327826847,1716520234056,-2522.64994428,0.00013,2]
[327826848,1716520234068,-13443.50325055,0.00013,2]
[327826850,1716520234079,-6936.01689433,0.00013,2]
[327826851,1716520234090,-5151.21969045,0.00013,2]
[327826852,1716520234180,-325.09234905,0.00013,2]
[327826853,1716520234191,-441.942,0.00013,2]
[327826854,1716520234202,-339.7200004,0.00013,2]
[327826855,1716520234213,-5792.33143784,0.00013,2]
[327826856,1716520234225,-31713.38660243,0.00013,2]
[327826857,1716520234236,-432.92,0.00013,2]
[327826858,1716520234248,-1030.80826547,0.00013,2]
[327826859,1716520234260,-3971.07024,0.00013,2]
[327826860,1716520234271,-323.46601211,0.00013,2]
[327826861,1716520234283,-1560.19495071,0.00013,2]
[327826862,1716520234294,-363.6,0.00013,2]
[327826875,1716520238171,-36128.61184765,0.00013,2]
[327826876,1716520238183,-2410.52708,0.00013,2]
[327826877,1716520238194,-16413.12358439,0.00013,2]
[327826878,1716520238206,-14532.30720051,0.00013,2]
[327826879,1716520238279,-58472.15628013,0.00013,2]
[327826880,1716520238290,-3212279.60001531,0.00013,2]
[327826883,1716520241094,-25656.55432395,0.00013,2]
[327826884,1716520241106,-134823.94657623,0.00013,2]
[327826885,1716520241117,-5967.7665863,0.00013,2]
[327826886,1716520241129,-2086.611497,0.00013,2]
[327826887,1716520241140,-136120.61257208,0.00013,2]
[327826888,1716520241151,-3601.35451564,0.00013,2]
[327826889,1716520241163,-558.32286001,0.00013,2]
[327826890,1716520241200,-12302.05248589,0.00013,2]
[327826891,1716520241212,-406.24944498,0.00013,2]
[327826892,1716520241224,-8777.65250678,0.00013,2]
[327826893,1716520241236,-8947.21879473,0.00013,2]
[327826894,1716520241247,-8943.78386462,0.00013,2]
[327826895,1716520241417,-9077.54866152,0.00013,2]
[327826896,1716520241430,-8943.84023489,0.00013,2]
[327826897,1716520241442,-1115.58827689,0.00013,2]
[327826898,1716520241453,-782.62451021,0.00013,2]
[327826899,1716520242036,-90699.41628417,0.00013,2]
[327826914,1716520244151,-3471.4840806,0.00013,2]
[327826920,1716520244164,-1298.18405249,0.00013,2]
[327826923,1716520244176,-34166.86788266,0.00013,2]
[327826925,1716520244188,-43197.3157737,0.00013,2]
[327826930,1716520244486,-5101.32660735,0.00013,2]
[327826937,1716520244499,-262.6544427,0.00013,2]
[327826946,1716520246272,-6480.31342171,0.00013,2]
[327826947,1716520246284,-6803.2727868,0.00013,2]
[327826948,1716520246295,-4161.50812744,0.00013,2]
[327826967,1716520584697,-232.92707221,0.000129,2]
[327826968,1716520584726,-3417.07292779,0.00012999,2]
[327826970,1716520589548,-10000.0,0.00012999,2]
[327826971,1716520590428,-10000.0,0.00012999,2]
[327826972,1716520591195,-10000.0,0.00012999,2]
[327826973,1716520591906,-10000.0,0.00012999,2]
[327826974,1716520592761,-10000.0,0.00012999,2]
[327826975,1716520594993,-10000.0,0.00012999,2]
[327826976,1716520595615,-10000.0,0.00012999,2]
[327826977,1716520596178,-10000.0,0.00012999,2]
[327826978,1716520596506,-10000.0,0.00012999,2]
[327826979,1716520596999,-10000.0,0.00012999,2]
[327826980,1716520597493,-10000.0,0.00012999,2]
[327826981,1716520597937,-10000.0,0.00012999,2]
[327826982,1716520598322,-10000.0,0.00012999,2]
[327826983,1716520601256,-10000.0,0.00012999,2]
[327826984,1716520601739,-10000.0,0.00012999,2]
[327826985,1716520602075,-10000.0,0.00012999,2]
[327826986,1716520603677,-3815.74231819,0.00012999,2]
[327826987,1716520603704,-6184.25768181,0.00013,2]
[327826988,1716520603780,-10000.0,0.00013,2]
[327826989,1716520605197,-10000.0,0.00013,2]
[327826990,1716520606255,-10000.0,0.00013,2]
[327826996,1716520939488,-2857.07248,0.0001299,2]
[327827027,1716521432130,-1823.22824646,0.00012989,2]
[327827030,1716521432140,-19164.7111921,0.0001299,2]
[327827032,1716521432151,-760.55939495,0.0001299,2]
[327827033,1716521432163,-625.3983,0.0001299,2]
[327827039,1716521432482,-6271.32552108,0.0001299,2]
[327827040,1716521432494,-385.01912969,0.0001299,2]
[327827041,1716521432532,-658.25,0.0001299,2]
[327827042,1716521432543,-34243.75533161,0.0001299,2]
[327827043,1716521432553,-174963.32709261,0.00013,2]
[327827044,1716521432565,-614.7279758,0.00013,2]
[327827045,1716521432577,-428.101543,0.00013,2]
[327827046,1716521432589,-467.2854211,0.00013,2]
[327827047,1716521432601,-460.43123519,0.00013,2]
[327827048,1716521432613,-60092.82223061,0.00013,2]
[327827049,1716521432624,-2781.04016613,0.00013,2]
[327827050,1716521432636,-54402.93726456,0.00013,2]
[327827051,1716521432647,-4321.14263448,0.00013,2]
[327827052,1716521432658,-29986.61042519,0.00013,2]
[327827053,1716521432669,-459.488712,0.00013,2]
[327827056,1716521439753,-2598.54076728,0.00013,2]
[327827058,1716521439766,-1044.28056317,0.00013,2]
[327827060,1716521439779,-1003.05091036,0.00013,2]
[327827061,1716521439794,-15262.06452375,0.00013,2]
[327827063,1716521439807,-170913.25421721,0.00013,2]
[327827077,1716521440222,-1015.1703867,0.00013,2]
[327827079,1716521440235,-2084.0327375,0.00013,2]
[327827082,1716521440247,-2007.98320904,0.00013,2]
[327827084,1716521440260,-2586.70432895,0.00013,2]
[327827086,1716521440273,-785.60005,0.00013,2]
[327827100,1716521441336,-2.6e-07,0.00013,2]
[327827101,1716521441349,-822.0755183,0.00013,2]
[327827102,1716521441741,-7531.55855394,0.00013,2]
[327827103,1716521442052,-443.43736833,0.00013,2]
[327827104,1716521442065,-568.60013059,0.00013,2]
[327827105,1716521442077,-3464.1329812,0.00013,2]
[327827117,1716521444484,-1245.4,0.00013,2]
[327827120,1716521444497,-181031.77344053,0.00013,2]
[327827130,1716521444880,-313.66786052,0.00013,2]
[327827131,1716521444892,-3463.59913515,0.00013,2]
[327827132,1716521444904,-4693.56857953,0.00013,2]
[327827133,1716521444917,-754.31485856,0.00013,2]
[327827134,1716521444928,-565.20398795,0.00013,2]
[327827137,1716521447620,-365.99288003,0.00013,2]
[327827143,1716521683005,157.0,0.00031,120]
[327827144,1716521702139,150.53,0.00031,120]
[327827147,1716521833188,302.62968284,0.0002509,120]
[327827148,1716521847890,1016.77203269,0.00031,120]
[327827153,1716522384201,530.23935897,0.0003,30]
[327827170,1716522632098,-181.13919952,0.00012869,2]
[327827171,1716522632108,-183.048939,0.00012869,2]
[327827173,1716522632120,-644.82286832,0.00012869,2]
[327827175,1716522632129,-442.28613485,0.0001287,2]
[327827178,1716522632217,-1158.27016515,0.0001287,2]
[327827179,1716522632226,-200.0,0.00012899,2]
[327827180,1716522632235,-7184.62982485,0.000129,2]
[327827181,1716522632246,-461.68774918,0.000129,2]
[327827182,1716522632257,-254.63992597,0.000129,2]
[327827183,1716522632267,-213.51648285,0.000129,2]
[327827184,1716522632276,-300.27745684,0.000129,2]
[327827185,1716522632285,-795.41728858,0.0001299,2]
[327827186,1716522632294,-165.81109167,0.0001299,2]
[327827187,1716522632303,-2395.22830683,0.00012999,2]
[327827188,1716522632314,-8765.97431311,0.00012999,2]
[327827189,1716522632367,-2216.04602153,0.00012999,2]
[327827190,1716522632378,-2291.30000015,0.00012999,2]
[327827191,1716522632390,-962.47257914,0.00012999,2]
[327827192,1716522632400,-1364.93835696,0.00012999,2]
[327827193,1716522632416,-3002.23633276,0.00012999,2]
[327827194,1716522632426,-9313.21597719,0.00012999,2]
[327827195,1716522632437,-664.03948097,0.00012999,2]
[327827196,1716522632448,-3749.66154191,0.00012999,2]
[327827203,1716522638176,-672.57,0.00012999,2]
[327827204,1716522638189,-573.2828905,0.00012999,2]
[327827205,1716522638238,-7283.51905851,0.00012999,2]
[327827206,1716522638249,-7275.1532313,0.00012999,2]
[327827207,1716522638259,-492.9851687,0.00012999,2]
[327827208,1716522638271,-162.52233978,0.00012999,2]
[327827209,1716522638281,-6983.77146022,0.00013,2]
[327827210,1716522638292,-18261.65070178,0.00013,2]
[327827211,1716522638304,-3777.04723178,0.00013,2]
[327827212,1716522638320,-7944.81792,0.00013,2]
[327827213,1716522638339,-1630069.57280058,0.00013,2]
[327827214,1716522638348,-200.08852877,0.00013,2]
[327827215,1716522638358,-3328.60403053,0.00013,2]
[327827216,1716522638368,-5577348.35654707,0.00013,2]
[327827217,1716522638378,-271640.8048303,0.00013,2]
[327827218,1716522638390,-170913.25421721,0.00013,2]
[327827219,1716522638402,-395.43598361,0.00013,2]
[327827220,1716522638417,-358.33485164,0.00013,2]
[327827221,1716522638428,-603.45575644,0.00013,2]
[327827222,1716522638440,-910.60655848,0.00013,2]
[327827223,1716522638452,-1313671.48702499,0.00013,2]
[327827224,1716522638471,-973.51784588,0.00013,2]
[327827291,1716522640662,-505.53116172,0.00013,2]
[327827292,1716522640674,-959.199,0.00013,2]
[327827293,1716522640686,-6699.49894914,0.00013,2]
[327827294,1716522641261,-339.25813426,0.00013,2]
[327827295,1716522641272,-389.72999925,0.00013,2]
[327827296,1716522641283,-680.51216495,0.00013,2]
[327827297,1716522641295,-652.20074213,0.00013,2]
[327827298,1716522641306,-617.42097586,0.00013,2]
[327827299,1716522641317,-922.15875278,0.00013,2]
[327827300,1716522641332,-2338.36758621,0.00013,2]
[327827301,1716522641342,-688.15196471,0.00013,2]
[327827302,1716522641353,-7225.95188826,0.00013,2]
[327827303,1716522641364,-631.33700009,0.00013,2]
[327827304,1716522641375,-345.59999998,0.00013,2]
[327827305,1716522641398,-46950.5185435,0.00013,2]
[327827306,1716522641410,-495.28604812,0.00013,2]
[327827307,1716522641433,-1163.68068873,0.00013,2]
[327827319,1716522643161,-491.63063136,0.00012999,2]
[327827320,1716522643171,-90.63937764,0.00013,2]
[327827323,1716522643595,-3416.13117966,0.00013,2]
[327827325,1716522643606,-154679.11187021,0.00013,2]
[327827327,1716522643621,-1066.32182804,0.00013,2]
[327827329,1716522643632,-608355.48555652,0.00013,2]
[327827331,1716522643643,-3382.0,0.00013,2]
[327827334,1716522643654,-4540.0,0.00013,2]
[327827336,1716522643666,-489.23716,0.00013,2]
[327827338,1716522643679,-736.37395775,0.00013,2]
[327827340,1716522643698,-327242.04604247,0.00013,2]
[327827342,1716522643729,-151.83,0.00013973,2]
[327827344,1716522643796,-154.2,0.00013973,2]
[327827346,1716522643920,-152.02,0.00013973,2]
[327827348,1716522644017,-20365.39,0.00013973,2]
[327827350,1716522644134,-280.0,0.00014189,2]
[327827352,1716522644230,-311.45,0.00014839,2]
[327827355,1716522644315,-213.51648276,0.00014945,2]
[327827357,1716522644325,-1600.55631,0.0001537,2]
[327827359,1716522644336,-31537.0,0.0001545,2]
[327827361,1716522644345,-1375.4,0.0001545,2]
[327827363,1716522644354,-499.99,0.0001545,2]
[327827365,1716522644363,-391.0,0.00015608,2]
[327827367,1716522644373,-250.0,0.0001669,2]
[327827369,1716522644382,-800.8,0.00016772,2]
[327827371,1716522644392,-1000.0,0.00016906,2]
[327827373,1716522644401,-157.91,0.00016933,2]
[327827375,1716522644410,-250.0,0.00016944,2]
[327827377,1716522644418,-213.51648276,0.00016991,2]
[327827379,1716522644427,-311.45,0.00017103,2]
[327827381,1716522644436,-327.0,0.00017169,2]
[327827383,1716522644446,-167.4,0.00017458,2]
[327827384,1716522644454,-843.09,0.00017519,2]
[327827385,1716522644463,-157.91,0.00017816,2]
[327827386,1716522644472,-1600.55631,0.0001787,2]
[327827387,1716522644482,-1000.0,0.00019019,2]
[327827388,1716522644491,-213.51648276,0.00019036,2]
[327827389,1716522644500,-311.45,0.00019367,2]
[327827390,1716522644509,-233.78,0.000195,2]
[327827391,1716522644519,-152.44,0.000195,2]
[327827392,1716522644528,-1358.6939991,0.0002,2]
[327827393,1716522644537,-2830.05630324,0.0002,2]
[327827394,1716522644546,-104277.19068974,0.0002,2]
[327827395,1716522644554,-1600.55631,0.0002037,2]
[327827396,1716522644563,-23900.0,0.00020899,2]
[327827397,1716522644572,-486.0,0.000209,2]
[327827398,1716522644582,-1050.0,0.00021,2]
[327827399,1716522644591,-1564.0,0.00021,2]
[327827401,1716522644600,-3494.33686057,0.00021,5]
[327827402,1716522644609,-213.51648276,0.00021082,2]
[327827404,1716522644619,-1000.0,0.00021132,2]
[327827406,1716522644628,-166.04,0.00021341,2]
[327827408,1716522644637,-311.45,0.00021631,2]
[327827410,1716522644647,-250.0,0.00021918,2]
[327827412,1716522644656,-267.69361263,0.00022,2]
[327827414,1716522644666,-1600.55631,0.0002287,2]
[327827416,1716522644675,-1100.0,0.00023,2]
[327827418,1716522644685,-233.78,0.00023,2]
[327827420,1716522644694,-152.44,0.00023,2]
[327827422,1716522644704,-213.51648276,0.00023127,2]
[327827424,1716522644713,-1000.0,0.00023245,2]
[327827426,1716522644723,-160.0,0.00023557,2]
[327827428,1716522644732,-311.45,0.00023895,2]
[327827430,1716522644742,-1425.33971498,0.00024,3]
[327827432,1716522644751,-300.27745682,0.0002415,2]
[327827434,1716522644761,-180.0,0.0002423,2]
[327827436,1716522644771,-1478.81441418,0.000245,3]
[327827438,1716522644781,-213.51648276,0.00025173,2]
[327827440,1716522644791,-1000.0,0.00025358,2]
[327827442,1716522644801,-1600.55631,0.0002537,2]
[327827444,1716522644810,-311.45,0.00026159,2]
[327827446,1716522644820,-213.51648276,0.00027218,2]
[327827448,1716522644829,-412.60685689,0.0002739,2]
[327827450,1716522644839,-154.2,0.00027641,2]
[327827452,1716522644849,-158.49166788,0.00027795,2]
[327827454,1716522644859,-233.78,0.00028,2]
[327827456,1716522644868,-152.44,0.00028,2]
[327827458,1716522644878,-500.0,0.00028102,2]
[327827460,1716522644888,-500.0,0.00028102,2]
[327827462,1716522644898,-500.0,0.00028102,2]
[327827464,1716522644907,-500.0,0.00028102,2]
[327827466,1716522644916,-500.0,0.00028102,2]
[327827468,1716522644926,-182.0,0.00028301,4]
[327827470,1716522644936,-16868.14199901,0.00028312,2]
[327827472,1716522644947,-2819.25183347,0.00028312,2]
[327827474,1716522644956,-205.72763628,0.00028312,2]
[327827476,1716522644965,-1273.82054408,0.00028313,2]
[327827478,1716522644976,-179.55544558,0.00028313,2]
[327827479,1716522644986,-944379.33556998,0.00028314,4]
[327827480,1716522644996,-52121.28446705,0.00028314,4]
[327827481,1716522645008,-701.11876246,0.00028314,4]
[327827482,1716522645020,-29194.99564922,0.00028314,4]
[327827483,1716522645034,-7786.92172431,0.00028314,4]
[327827490,1716522646937,-861.11127635,0.00028314,4]
[327827517,1716523612886,886.00883025,0.00028314,30]
[327827520,1716523689095,154.5,0.00027066,120]
[327827521,1716523689448,154.5,0.00030933,120]
[327827522,1716523730839,1134.57,0.0003,30]
[327827532,1716523832401,-2560.26,0.00012766,2]
[327827533,1716523832411,-172.500666,0.00013622,2]
[327827534,1716523832421,-534.9432489,0.00013689,2]
[327827535,1716523832431,-162.15064589,0.0001369,2]
[327827536,1716523832441,-2920.04732138,0.00013691,2]
[327827537,1716523832455,-2002.08160978,0.00013691,2]
[327827538,1716523832466,-940.00899289,0.00013691,2]
[327827539,1716523832476,-3010.74416602,0.00013691,2]
[327827540,1716523832488,-3647.27708135,0.00013691,2]
[327827541,1716523832498,-1180.356749,0.00013692,2]
[327827542,1716523832507,-1273.64909897,0.00013692,2]
[327827543,1716523832517,-263.25204484,0.00013692,2]
[327827544,1716523832529,-365.62530362,0.00013692,2]
[327827545,1716523832539,-155.0,0.00013692,2]
[327827546,1716523832549,-207.58824107,0.00013692,2]
[327827547,1716523832558,-155.0,0.00013692,2]
[327827548,1716523832567,-423.71279463,0.00013693,2]
[327827549,1716523832577,-155.0,0.00013693,2]
[327827550,1716523832587,-290.59150024,0.00013693,2]
[327827551,1716523832597,-406.33881685,0.00013693,2]
[327827552,1716523832607,-210.44648753,0.00013693,2]
[327827553,1716523832617,-168.90292437,0.00013694,2]
[327827554,1716523832627,-3092.38465923,0.0001379,2]
[327827555,1716523832636,-2330.40901735,0.0001379,2]
[327827556,1716523832646,-10945.59975113,0.0001379,2]
[327827557,1716523832656,-1000.0,0.00013791,2]
[327827558,1716523832666,-529.6006328,0.00013791,2]
[327827559,1716523832675,-1790.87747307,0.00013791,2]
[327827560,1716523832685,-327.02252959,0.00013791,2]
[327827561,1716523832694,-2188.02281065,0.00013791,2]
[327827562,1716523832704,-344.72853411,0.00013791,2]
[327827563,1716523832713,-155.0,0.00013791,2]
[327827564,1716523832723,-782.67477937,0.00013791,2]
[327827565,1716523832732,-1381.93423711,0.00013791,2]
[327827566,1716523832742,-5567.88237454,0.00013792,2]
[327827567,1716523832751,-1245.97765168,0.00013793,2]
[327827568,1716523832761,-43334.51245494,0.00013794,2]
[327827569,1716523832770,-35392.01719031,0.00013863,2]
[327827571,1716523832779,-150.0,0.00013864,2]
[327827573,1716523832788,-150.0,0.00013864,2]
[327827575,1716523832798,-693.0,0.00013866,2]
[327827577,1716523832807,-19507.0771334,0.00013867,2]
[327827580,1716523832817,-19507.0771334,0.00013867,2]
[327827582,1716523832826,-19507.0771334,0.00013867,2]
[327827583,1716523832835,-19507.0771334,0.00013867,2]
[327827585,1716523832844,-160.19,0.00013867,2]
[327827588,1716523832854,-7898.46389031,0.00013869,2]
[327827589,1716523832863,-13212.1097,0.00013873,2]
[327827591,1716523832872,-156.23534326,0.00013972,2]
[327827593,1716523832882,-151.83,0.00013973,2]
[327827595,1716523832891,-167.31,0.00014676,2]
[327827597,1716523832902,-155.0,0.00015,2]
[327827599,1716523832912,-210.0,0.0001525,2]
[327827601,1716523832921,-210.0,0.0001525,2]
[327827603,1716523832931,-179.21,0.00016712,2]
[327827605,1716523832940,-293.0,0.00016775,2]
[327827608,1716523832951,-293.0,0.00016775,2]
[327827609,1716523832960,-1139.65,0.00016966,2]
[327827612,1716523832970,-10380.4636,0.00017159,2]
[327827614,1716523832979,-174.38,0.00018026,2]
[327827615,1716523832988,-411.0,0.00018452,2]
[327827617,1716523832998,-411.0,0.00018452,2]
[327827620,1716523833008,-3882.63870913,0.000192,2]
[327827621,1716523833017,-457.97826669,0.0002,2]
[327827624,1716523833027,-11050.57305043,0.0002,2]
[327827626,1716523833036,-155.0,0.0002,2]
[327827627,1716523833046,-862.59931804,0.0002,2]
[327827629,1716523833055,-155.0,0.0002,2]
[327827631,1716523833064,-1774.2987608,0.0002,2]
[327827633,1716523833073,-1263.85446581,0.0002,2]
[327827634,1716523833083,-155.0,0.0002,2]
[327827635,1716523833092,-5188.06991851,0.0002,2]
[327827636,1716523833102,-628.17075548,0.0002,2]
[327827637,1716523833112,-6241.7602304,0.0002,2]
[327827638,1716523833122,-522.0,0.0002,2]
[327827639,1716523833131,-576.0,0.00020298,2]
[327827640,1716523833141,-576.0,0.00020298,2]
[327827641,1716523833151,-833.45,0.00020723,2]
[327827642,1716523833160,-200.0,0.00020768,2]
[327827643,1716523833170,-2751.0,0.00020972,2]
[327827644,1716523833179,-5513.13702848,0.00021,2]